fUST/lending_fUST_20250906
["ID","MTS","AMOUNT","RATE_DAILY","PERIOD"]
[383743398,1757106657382,-1033.98,0.00014794,2]
[383743399,1757106657391,-1237.66,0.00014794,2]
[383743400,1757106657401,-151.0,0.000148,2]
[383743401,1757106657411,-151.0,0.000149,2]
[383743402,1757106657420,-269.0,0.00014902,2]
[383743403,1757106657430,-960.0,0.00014957,2]
[383743404,1757106657440,-480.0,0.00015068,2]
[383743405,1757106657450,-480.0,0.00015068,2]
[383743406,1757106657459,-480.0,0.00015068,2]
[383743407,1757106657469,-480.0,0.00015068,2]
[383743408,1757106657479,-480.0,0.00015068,2]
[383743409,1757106657488,-480.0,0.00015068,2]
[383743410,1757106657497,-480.0,0.00015068,2]
[383743411,1757106657508,-480.0,0.00015068,2]
[383743412,1757106657518,-480.0,0.00015068,2]
[383743413,1757106657528,-480.0,0.00015068,2]
[383743414,1757106657538,-480.0,0.00015068,2]
[383743415,1757106657547,-480.0,0.00015068,2]
[383743416,1757106657557,-480.0,0.00015068,2]
[383743417,1757106657566,-480.0,0.00015068,2]
[383743418,1757106657585,-480.0,0.00015068,2]
[383743419,1757106657596,-480.0,0.00015068,2]
[383743420,1757106657606,-480.0,0.00015068,2]
[383743421,1757106657616,-480.0,0.00015068,2]
[383743422,1757106657627,-480.0,0.00015068,2]
[383743423,1757106657637,-480.0,0.00015068,2]
[383743424,1757106657647,-480.0,0.00015068,2]
[383743425,1757106657657,-480.0,0.00015068,2]
[383743426,1757106657668,-480.0,0.00015068,2]
[383743427,1757106657678,-508.51,0.00015068,2]
[383743428,1757106657688,-530.34,0.00015068,2]
[383743429,1757106657698,-480.0,0.00015068,2]
[383743430,1757106657708,-522.38,0.00015068,2]
[383743431,1757106657718,-480.0,0.00015068,2]
[383743432,1757106657728,-480.0,0.00015068,2]
[383743433,1757106657738,-480.0,0.00015068,2]
[383743434,1757106657748,-480.0,0.00015068,2]
[383743435,1757106657760,-480.0,0.00015068,2]
[383743436,1757106657770,-480.0,0.00015068,2]
[383743437,1757106657780,-342.10317408,0.00015068,2]
[383743438,1757106657790,-483.2,0.00015068,2]
[383743439,1757106657800,-480.0,0.00015068,2]
[383743440,1757106657809,-480.0,0.00015068,2]
[383743441,1757106657821,-480.0,0.00015068,2]
[383743442,1757106657831,-480.0,0.00015068,2]
[383743443,1757106657840,-480.0,0.00015068,2]
[383743444,1757106657850,-480.0,0.00015068,2]
[383743445,1757106657860,-480.0,0.00015068,2]
[383743446,1757106657870,-410.38413575,0.00015068,2]
[383743447,1757106657880,-480.0,0.00015068,2]
[383743448,1757106657890,-480.0,0.00015068,2]
[383743449,1757106657900,-480.0,0.00015068,2]
[383743450,1757106657909,-231.47,0.00015068,2]
[383743451,1757106657919,-236.0,0.00015068,2]
[383743452,1757106657929,-369.49482414,0.00015068,2]
[383743453,1757106657939,-480.0,0.00015068,2]
[383743454,1757106657949,-480.0,0.00015068,2]
[383743455,1757106657959,-480.0,0.00015068,2]
[383743456,1757106657969,-480.0,0.00015068,2]
[383743457,1757106657981,-480.0,0.00015068,2]
[383743458,1757106657991,-480.0,0.00015068,2]
[383743459,1757106658001,-536.06729541,0.00015068,2]
[383743460,1757106658011,-480.0,0.00015068,2]
[383743461,1757106658021,-480.0,0.00015068,2]
[383743462,1757106658031,-480.0,0.00015068,2]
[383743463,1757106658041,-480.0,0.00015068,2]
[383743464,1757106658052,-480.0,0.00015068,2]
[383743465,1757106658062,-816.54,0.00015068,2]
[383743466,1757106658072,-480.0,0.00015068,2]
[383743467,1757106658082,-480.0,0.00015068,2]
[383743468,1757106658092,-480.0,0.00015068,2]
[383743469,1757106658103,-564.33,0.00015068,2]
[383743470,1757106658113,-480.0,0.00015068,2]
[383743471,1757106658123,-480.0,0.00015068,2]
[383743472,1757106658134,-1450.63,0.00015068,2]
[383743473,1757106658144,-376.74,0.00015068,2]
[383743474,1757106658154,-480.0,0.00015068,2]
[383743475,1757106658164,-480.0,0.00015068,2]
[383743476,1757106658177,-480.0,0.00015068,2]
[383743477,1757106658187,-480.0,0.00015068,2]
[383743478,1757106658196,-480.0,0.00015068,2]
[383743479,1757106658206,-480.0,0.00015068,2]
[383743480,1757106658216,-665.71,0.00015068,2]
[383743481,1757106658226,-480.0,0.00015068,2]
[383743482,1757106658235,-480.0,0.00015068,2]
[383743483,1757106658245,-480.0,0.00015068,2]
[383743484,1757106658255,-480.0,0.00015068,2]
[383743485,1757106658265,-480.0,0.00015068,2]
[383743486,1757106658275,-480.0,0.00015068,2]
[383743487,1757106658284,-480.0,0.00015068,2]
[383743488,1757106658294,-480.0,0.00015068,2]
[383743489,1757106658304,-480.0,0.00015068,2]
[383743490,1757106658314,-480.0,0.00015068,2]
[383743491,1757106658323,-480.0,0.00015068,2]
[383743492,1757106658333,-480.0,0.00015068,2]
[383743493,1757106658344,-480.0,0.00015068,2]
[383743494,1757106658354,-480.0,0.00015068,2]
[383743495,1757106658364,-713.72,0.00015068,2]
[383743496,1757106658374,-480.0,0.00015068,2]
[383743497,1757106658383,-480.0,0.00015068,2]
[383743498,1757106658393,-480.0,0.00015068,2]
[383743499,1757106658403,-480.0,0.00015068,2]
[383743500,1757106658414,-480.0,0.00015068,2]
[383743501,1757106658423,-636.56,0.00015068,2]
[383743502,1757106658433,-480.0,0.00015068,2]
[383743503,1757106658443,-480.0,0.00015068,2]
[383743504,1757106658452,-480.0,0.00015068,2]
[383743505,1757106658462,-480.0,0.00015068,2]
[383743506,1757106658472,-400.46470549,0.00015068,2]
[383743507,1757106658482,-480.0,0.00015068,2]
[383743508,1757106658491,-480.0,0.00015068,2]
[383743509,1757106658501,-480.0,0.00015068,2]
[383743510,1757106658511,-480.0,0.00015068,2]
[383743511,1757106658520,-201.964818,0.00015068,2]
[383743512,1757106658530,-151.0,0.00015068,2]
[383743513,1757106658539,-210.11192519,0.00015068,2]
[383743514,1757106658549,-151.0,0.00015068,2]
[383743515,1757106658559,-480.0,0.00015068,2]
[383743516,1757106658569,-377.00473543,0.00015068,2]
[383743517,1757106658578,-247.47,0.00015068,2]
[383743518,1757106658588,-151.0,0.00015068,2]
[383743519,1757106658598,-1033.98,0.00015068,2]
[383743520,1757106658608,-1237.66,0.00015068,2]
[383743521,1757106658618,-373.809155,0.00015068,2]
[383743522,1757106658628,-373.809155,0.00015068,2]
[383743523,1757106658639,-373.809155,0.00015068,2]
[383743524,1757106658653,-373.809155,0.00015068,2]
[383743525,1757106658665,-226.21804427,0.00015068,2]
[383743526,1757106658675,-507.65629494,0.00015068,2]
[383743527,1757106658685,-160.0,0.00015084,2]
[383743528,1757106658695,-720.0,0.00015256,2]
[383743529,1757106658706,-19611.8388622,0.00015302,2]
[383743530,1757106658716,-166.225936,0.00015302,2]
[383743531,1757106658726,-151.0,0.00015302,2]
[383743532,1757106658736,-151.0,0.00015302,2]
[383743533,1757106658748,-151.0,0.00015302,2]
[383743534,1757106658759,-245.178145,0.00015302,2]
[383743535,1757106658771,-163.244017,0.00015302,2]
[383743536,1757106658781,-163.244017,0.00015302,2]
[383743537,1757106658791,-163.244017,0.00015302,2]
[383743538,1757106658800,-163.244017,0.00015302,2]
[383743539,1757106658810,-151.0,0.00015302,2]
[383743540,1757106658820,-151.0,0.00015302,2]
[383743541,1757106658830,-151.0,0.00015302,2]
[383743542,1757106658840,-151.0,0.00015302,2]
[383743543,1757106658850,-151.0,0.00015302,2]
[383743544,1757106658859,-151.0,0.00015302,2]
[383743545,1757106658869,-151.0,0.00015302,2]
[383743546,1757106658879,-380.0,0.00015342,2]
[383743547,1757106658888,-480.0,0.00015342,2]
[383743548,1757106658899,-157.52,0.00015342,2]
[383743549,1757106658908,-480.0,0.00015342,2]
[383743550,1757106658918,-480.0,0.00015342,2]
[383743551,1757106658928,-599.40958938,0.00015342,2]
[383743552,1757106658938,-480.0,0.00015342,2]
[383743553,1757106658948,-480.0,0.00015342,2]
[383743554,1757106658958,-480.0,0.00015342,2]
[383743555,1757106658968,-480.0,0.00015342,2]
[383743556,1757106658977,-480.0,0.00015342,2]
[383743557,1757106658987,-248.83525647,0.00015342,2]
[383743558,1757106658998,-480.0,0.00015342,2]
[383743559,1757106659008,-480.0,0.00015342,2]
[383743560,1757106659018,-480.0,0.00015342,2]
[383743561,1757106659028,-382.79641766,0.00015342,2]
[383743562,1757106659038,-480.0,0.00015342,2]
[383743563,1757106659047,-480.0,0.00015342,2]
[383743564,1757106659057,-480.0,0.00015342,2]
[383743565,1757106659068,-480.0,0.00015342,2]
[383743566,1757106659078,-483.79,0.00015342,2]
[383743567,1757106659225,-480.0,0.00015342,2]
[383743568,1757106659235,-480.0,0.00015342,2]
[383743569,1757106659247,-480.0,0.00015342,2]
[383743570,1757106659258,-480.0,0.00015342,2]
[383743571,1757106659267,-348.58,0.00015342,2]
[383743572,1757106659278,-483.2,0.00015342,2]
[383743573,1757106659290,-480.0,0.00015342,2]
[383743574,1757106659300,-480.0,0.00015342,2]
[383743575,1757106659310,-480.0,0.00015342,2]
[383743576,1757106659320,-480.0,0.00015342,2]
[383743577,1757106659330,-480.0,0.00015342,2]
[383743578,1757106659342,-480.0,0.00015342,2]
[383743579,1757106659352,-480.0,0.00015342,2]
[383743580,1757106659362,-151.0,0.00015342,2]
[383743581,1757106659373,-151.0,0.00015342,2]
[383743582,1757106659382,-151.0,0.00015342,2]
[383743583,1757106659392,-480.0,0.00015342,2]
[383743584,1757106659403,-151.0,0.00015342,2]
[383743585,1757106659413,-151.0,0.00015342,2]
[383743586,1757106659423,-480.0,0.00015342,2]
[383743587,1757106659434,-480.0,0.00015342,2]
[383743588,1757106659444,-480.0,0.00015342,2]
[383743589,1757106659454,-480.0,0.00015342,2]
[383743590,1757106659464,-480.0,0.00015342,2]
[383743591,1757106659474,-480.0,0.00015342,2]
[383743592,1757106659484,-816.54,0.00015342,2]
[383743593,1757106659496,-480.0,0.00015342,2]
[383743594,1757106659508,-480.0,0.00015342,2]
[383743595,1757106659517,-480.0,0.00015342,2]
[383743596,1757106659527,-564.33,0.00015342,2]
[383743597,1757106659537,-480.0,0.00015342,2]
[383743598,1757106659547,-1450.63,0.00015342,2]
[383743599,1757106659556,-480.0,0.00015342,2]
[383743600,1757106659567,-480.0,0.00015342,2]
[383743601,1757106659576,-480.0,0.00015342,2]
[383743602,1757106659586,-480.0,0.00015342,2]
[383743603,1757106659595,-665.71,0.00015342,2]
[383743604,1757106659605,-480.0,0.00015342,2]
[383743605,1757106659615,-480.0,0.00015342,2]
[383743606,1757106659624,-480.0,0.00015342,2]
[383743607,1757106659634,-461.22021775,0.00015342,2]
[383743608,1757106659644,-480.0,0.00015342,2]
[383743609,1757106659654,-480.0,0.00015342,2]
[383743610,1757106659664,-480.0,0.00015342,2]
[383743611,1757106659673,-480.0,0.00015342,2]
[383743612,1757106659682,-480.0,0.00015342,2]
[383743613,1757106659692,-713.72,0.00015342,2]
[383743614,1757106659701,-480.0,0.00015342,2]
[383743615,1757106659710,-480.0,0.00015342,2]
[383743616,1757106659720,-480.0,0.00015342,2]
[383743617,1757106659729,-480.0,0.00015342,2]
[383743618,1757106659739,-636.56,0.00015342,2]
[383743619,1757106659748,-480.0,0.00015342,2]
[383743620,1757106659759,-480.0,0.00015342,2]
[383743621,1757106659768,-480.0,0.00015342,2]
[383743622,1757106659778,-480.0,0.00015342,2]
[383743623,1757106659787,-480.0,0.00015342,2]
[383743624,1757106659797,-480.0,0.00015342,2]
[383743625,1757106659807,-480.0,0.00015342,2]
[383743626,1757106659816,-480.0,0.00015342,2]
[383743627,1757106659825,-1033.98,0.00015342,2]
[383743628,1757106659835,-1237.66,0.00015342,2]
[383743629,1757106659844,-353.744153,0.00015525,2]
[383743630,1757106659854,-353.744153,0.00015525,2]
[383743631,1757106659863,-353.744153,0.00015525,2]
[383743632,1757106659872,-353.744153,0.00015525,2]
[383743633,1757106659882,-151.0,0.00015525,2]
[383743634,1757106659891,-151.0,0.00015525,2]
[383743635,1757106659900,-151.0,0.00015525,2]
[383743636,1757106659910,-151.0,0.00015525,2]
[383743637,1757106659920,-222.732383,0.00015525,2]
[383743638,1757106659929,-480.0,0.00015616,2]
[383743639,1757106659938,-480.0,0.00015616,2]
[383743640,1757106659948,-480.0,0.00015616,2]
[383743641,1757106659958,-151.0,0.00015616,2]
[383743642,1757106659967,-155.952107,0.00015616,2]
[383743643,1757106659976,-151.0,0.00015616,2]
[383743644,1757106659986,-155.952107,0.00015616,2]
[383743645,1757106659995,-155.952107,0.00015616,2]
[383743646,1757106660004,-155.952107,0.00015616,2]
[383743647,1757106660014,-170.978436,0.00015616,2]
[383743648,1757106660024,-170.978436,0.00015616,2]
[383743649,1757106660035,-480.0,0.00015616,2]
[383743650,1757106660045,-170.978436,0.00015616,2]
[383743651,1757106660055,-170.978436,0.00015616,2]
[383743652,1757106660065,-480.0,0.00015616,2]
[383743653,1757106660076,-269.16,0.00015616,2]
[383743654,1757106660086,-480.0,0.00015616,2]
[383743655,1757106660096,-480.0,0.00015616,2]
[383743656,1757106660105,-480.0,0.00015616,2]
[383743657,1757106660115,-480.0,0.00015616,2]
[383743658,1757106660124,-480.0,0.00015616,2]
[383743659,1757106660135,-480.0,0.00015616,2]
[383743660,1757106660144,-480.0,0.00015616,2]
[383743661,1757106660154,-480.0,0.00015616,2]
[383743662,1757106660164,-480.0,0.00015616,2]
[383743663,1757106660174,-480.0,0.00015616,2]
[383743664,1757106660184,-483.2,0.00015616,2]
[383743665,1757106660194,-480.0,0.00015616,2]
[383743666,1757106660204,-480.0,0.00015616,2]
[383743667,1757106660213,-480.0,0.00015616,2]
[383743668,1757106660223,-480.0,0.00015616,2]
[383743669,1757106660233,-480.0,0.00015616,2]
[383743670,1757106660243,-334.61,0.00015616,2]
[383743671,1757106660252,-480.0,0.00015616,2]
[383743672,1757106660264,-480.0,0.00015616,2]
[383743673,1757106660273,-480.0,0.00015616,2]
[383743674,1757106660283,-480.0,0.00015616,2]
[383743675,1757106660292,-480.0,0.00015616,2]
[383743676,1757106660302,-480.0,0.00015616,2]
[383743677,1757106660311,-816.54,0.00015616,2]
[383743678,1757106660321,-480.0,0.00015616,2]
[383743679,1757106660331,-480.0,0.00015616,2]
[383743680,1757106660341,-564.33,0.00015616,2]
[383743681,1757106660351,-480.0,0.00015616,2]
[383743682,1757106660361,-1450.63,0.00015616,2]
[383743683,1757106660372,-480.0,0.00015616,2]
[383743684,1757106660382,-480.0,0.00015616,2]
[383743685,1757106660392,-480.0,0.00015616,2]
[383743686,1757106660402,-665.71,0.00015616,2]
[383743687,1757106660412,-480.0,0.00015616,2]
[383743688,1757106660422,-480.0,0.00015616,2]
[383743689,1757106660432,-480.0,0.00015616,2]
[383743690,1757106660441,-480.0,0.00015616,2]
[383743691,1757106660449,-480.0,0.00015616,2]
[383743692,1757106660457,-480.0,0.00015616,2]
[383743693,1757106660467,-480.0,0.00015616,2]
[383743694,1757106660477,-480.0,0.00015616,2]
[383743695,1757106660486,-713.72,0.00015616,2]
[383743696,1757106660496,-480.0,0.00015616,2]
[383743697,1757106660506,-480.0,0.00015616,2]
[383743698,1757106660516,-480.0,0.00015616,2]
[383743699,1757106660526,-480.0,0.00015616,2]
[383743700,1757106660535,-636.56,0.00015616,2]
[383743701,1757106660545,-480.0,0.00015616,2]
[383743702,1757106660555,-480.0,0.00015616,2]
[383743703,1757106660565,-480.0,0.00015616,2]
[383743704,1757106660575,-480.0,0.00015616,2]
[383743705,1757106660585,-480.0,0.00015616,2]
[383743706,1757106660595,-404.36120556,0.00015616,2]
[383743707,1757106660605,-480.0,0.00015616,2]
[383743708,1757106660615,-480.0,0.00015616,2]
[383743709,1757106660625,-1033.98,0.00015616,2]
[383743710,1757106660635,-1237.66,0.00015616,2]
[383743711,1757106660645,-260.0,0.00015632,2]
[383743712,1757106660655,-480.0,0.0001589,2]
[383743713,1757106660664,-480.0,0.0001589,2]
[383743714,1757106660674,-257.043807,0.0001589,2]
[383743715,1757106660684,-480.0,0.0001589,2]
[383743716,1757106660694,-480.0,0.0001589,2]
[383743717,1757106660704,-480.0,0.0001589,2]
[383743718,1757106660714,-480.0,0.0001589,2]
[383743719,1757106660725,-480.0,0.0001589,2]
[383743720,1757106660735,-480.0,0.0001589,2]
[383743721,1757106660744,-480.0,0.0001589,2]
[383743722,1757106660754,-480.0,0.0001589,2]
[383743723,1757106660766,-480.0,0.0001589,2]
[383743724,1757106660776,-480.0,0.0001589,2]
[383743725,1757106660786,-535.2,0.0001589,2]
[383743726,1757106660795,-483.2,0.0001589,2]
[383743727,1757106660805,-515.38,0.0001589,2]
[383743728,1757106660814,-480.0,0.0001589,2]
[383743729,1757106660824,-480.0,0.0001589,2]
[383743730,1757106660833,-480.0,0.0001589,2]
[383743731,1757106660843,-480.0,0.0001589,2]
[383743732,1757106660852,-480.0,0.0001589,2]
[383743733,1757106660862,-480.0,0.0001589,2]
[383743734,1757106660872,-480.0,0.0001589,2]
[383743735,1757106660882,-480.0,0.0001589,2]
[383743736,1757106660892,-508.18036009,0.0001589,2]
[383743737,1757106660901,-480.0,0.0001589,2]
[383743738,1757106660911,-816.54,0.0001589,2]
[383743739,1757106660921,-255.23,0.0001589,2]
[383743740,1757106660931,-564.33,0.0001589,2]
[383743741,1757106660941,-480.0,0.0001589,2]
[383743742,1757106660951,-1450.63,0.0001589,2]
[383743743,1757106660960,-413.78473972,0.0001589,2]
[383743744,1757106660969,-448.93475385,0.0001589,2]
[383743745,1757106660979,-480.0,0.0001589,2]
[383743746,1757106660989,-665.71,0.0001589,2]
[383743747,1757106661000,-445.66321152,0.0001589,2]
[383743748,1757106661011,-480.0,0.0001589,2]
[383743749,1757106661021,-480.0,0.0001589,2]
[383743750,1757106661031,-480.0,0.0001589,2]
[383743751,1757106661041,-480.0,0.0001589,2]
[383743752,1757106661050,-480.0,0.0001589,2]
[383743753,1757106661060,-480.0,0.0001589,2]
[383743754,1757106661070,-480.0,0.0001589,2]
[383743755,1757106661080,-713.72,0.0001589,2]
[383743756,1757106661090,-480.0,0.0001589,2]
[383743757,1757106661100,-480.0,0.0001589,2]
[383743758,1757106661109,-480.0,0.0001589,2]
[383743759,1757106661119,-480.0,0.0001589,2]
[383743760,1757106661130,-636.56,0.0001589,2]
[383743761,1757106661141,-403.64,0.0001589,2]
[383743762,1757106661152,-480.0,0.0001589,2]
[383743763,1757106661162,-480.0,0.0001589,2]
[383743764,1757106661259,-480.0,0.0001589,2]
[383743765,1757106661269,-480.0,0.0001589,2]
[383743766,1757106661279,-480.0,0.0001589,2]
[383743767,1757106661289,-480.0,0.0001589,2]
[383743768,1757106661300,-1033.98,0.0001589,2]
[383743769,1757106661311,-1237.66,0.0001589,2]
[383743770,1757106661322,-500.0,0.00015942,2]
[383743771,1757106661331,-500.0,0.00015942,2]
[383743772,1757106661341,-500.0,0.00015942,2]
[383743773,1757106661354,-500.0,0.00015942,2]
[383743774,1757106661363,-500.0,0.00015942,2]
[383743775,1757106661374,-500.0,0.00015942,2]
[383743776,1757106661384,-500.0,0.00015942,2]
[383743777,1757106661393,-500.0,0.00015942,2]
[383743778,1757106661403,-500.0,0.00015942,2]
[383743779,1757106661413,-500.0,0.00015942,2]
[383743780,1757106661422,-500.0,0.00015942,2]
[383743781,1757106661433,-500.0,0.00015942,2]
[383743782,1757106661443,-500.0,0.00015942,2]
[383743783,1757106661454,-500.0,0.00015942,2]
[383743784,1757106661463,-250.37229285,0.00015975,2]
[383743785,1757106661473,-150.0,0.00016,2]
[383743786,1757106661482,-409.0,0.00016015,2]
[383743787,1757106661493,-150.0,0.00016044,2]
[383743788,1757106661502,-150.0,0.00016044,2]
[383743789,1757106661513,-150.0,0.00016044,2]
[383743790,1757106661523,-975.0,0.00016044,2]
[383743791,1757106661534,-2153.0,0.00016044,2]
[383743792,1757106661546,-633.0,0.00016044,2]
[383743793,1757106661556,-151.0,0.00016068,2]
[383743794,1757106661566,-151.0,0.00016085,2]
[383743795,1757106661577,-20746.26328358,0.00016085,2]
[383743796,1757106661587,-187.78006524,0.00016085,2]
[383743797,1757106661597,-151.0,0.00016085,2]
[383743798,1757106661607,-151.0,0.00016085,2]
[383743799,1757106661619,-151.0,0.00016085,2]
[383743800,1757106661629,-151.0,0.00016085,2]
[383743801,1757106661640,-151.0,0.00016085,2]
[383743802,1757106661650,-2264.10087164,0.00016085,2]
[383743803,1757106661660,-151.0,0.00016085,2]
[383743804,1757106661670,-151.0,0.00016085,2]
[383743805,1757106661680,-151.0,0.00016085,2]
[383743806,1757106661690,-151.0,0.00016085,2]
[383743807,1757106661699,-151.0,0.00016085,2]
[383743808,1757106661709,-151.0,0.00016085,2]
[383743809,1757106661720,-151.0,0.00016085,2]
[383743810,1757106661729,-151.0,0.00016085,2]
[383743811,1757106661739,-151.0,0.00016085,2]
[383743812,1757106661749,-480.0,0.00016164,2]
[383743813,1757106661759,-480.0,0.00016164,2]
[383743814,1757106661768,-399.54090219,0.00016164,2]
[383743815,1757106661778,-275.871,0.00016164,2]
[383743816,1757106661788,-480.0,0.00016164,2]
[383743817,1757106661797,-596.66,0.00016164,2]
[383743818,1757106661807,-480.0,0.00016164,2]
[383743819,1757106661817,-220.41281166,0.00016164,2]
[383743820,1757106661827,-480.0,0.00016164,2]
[383743821,1757106661836,-480.0,0.00016164,2]
[383743822,1757106661846,-480.0,0.00016164,2]
[383743823,1757106661855,-483.2,0.00016164,2]
[383743824,1757106661866,-480.0,0.00016164,2]
[383743825,1757106661876,-480.0,0.00016164,2]
[383743826,1757106661886,-480.0,0.00016164,2]
[383743827,1757106661897,-480.0,0.00016164,2]
[383743828,1757106661907,-480.0,0.00016164,2]
[383743829,1757106661916,-298.14,0.00016164,2]
[383743830,1757106661926,-480.0,0.00016164,2]
[383743831,1757106661937,-816.54,0.00016164,2]
[383743832,1757106661947,-564.33,0.00016164,2]
[383743833,1757106661957,-480.0,0.00016164,2]
[383743834,1757106661967,-1450.63,0.00016164,2]
[383743835,1757106661976,-480.0,0.00016164,2]
[383743836,1757106661986,-665.71,0.00016164,2]
[383743837,1757106661995,-480.0,0.00016164,2]
[383743838,1757106662006,-480.0,0.00016164,2]
[383743839,1757106662016,-480.0,0.00016164,2]
[383743840,1757106662026,-480.0,0.00016164,2]
[383743841,1757106662036,-597.84,0.00016164,2]
[383743842,1757106662047,-480.0,0.00016164,2]
[383743843,1757106662058,-713.72,0.00016164,2]
[383743844,1757106662068,-339.96,0.00016164,2]
[383743845,1757106662078,-480.0,0.00016164,2]
[383743846,1757106662088,-480.0,0.00016164,2]
[383743847,1757106662098,-636.56,0.00016164,2]
[383743848,1757106662108,-480.0,0.00016164,2]
[383743849,1757106662117,-480.0,0.00016164,2]
[383743850,1757106662128,-480.0,0.00016164,2]
[383743851,1757106662137,-527.05,0.00016164,2]
[383743852,1757106662147,-519.07174125,0.00016164,2]
[383743853,1757106662157,-503.25,0.00016164,2]
[383743854,1757106662168,-1033.98,0.00016164,2]
[383743855,1757106662181,-1237.66,0.00016164,2]
[383743856,1757106662192,-360.0,0.0001618,2]
[383743857,1757106662203,-152.873393,0.00016438,2]
[383743858,1757106662214,-480.0,0.00016438,2]
[383743859,1757106662225,-480.0,0.00016438,2]
[383743860,1757106662237,-480.0,0.00016438,2]
[383743861,1757106662247,-320.96,0.00016438,2]
[383743862,1757106662259,-480.0,0.00016438,2]
[383743863,1757106662268,-480.0,0.00016438,2]
[383743864,1757106662278,-434.29536743,0.00016438,2]
[383743865,1757106662288,-483.2,0.00016438,2]
[383743866,1757106662298,-480.0,0.00016438,2]
[383743867,1757106662309,-416.51,0.00016438,2]
[383743868,1757106662319,-480.0,0.00016438,2]
[383743869,1757106662328,-569.79131796,0.00016438,2]
[383743870,1757106662340,-360.42180147,0.00016438,2]
[383743871,1757106662351,-816.54,0.00016438,2]
[383743872,1757106662361,-564.33,0.00016438,2]
[383743873,1757106662372,-480.0,0.00016438,2]
[383743874,1757106662383,-1450.63,0.00016438,2]
[383743875,1757106662393,-480.0,0.00016438,2]
[383743876,1757106662403,-665.71,0.00016438,2]
[383743877,1757106662413,-480.0,0.00016438,2]
[383743878,1757106662423,-480.0,0.00016438,2]
[383743879,1757106662433,-480.0,0.00016438,2]
[383743880,1757106662442,-501.5,0.00016438,2]
[383743881,1757106662452,-356.52829283,0.00016438,2]
[383743882,1757106662462,-713.72,0.00016438,2]
[383743883,1757106662471,-480.0,0.00016438,2]
[383743884,1757106662482,-480.0,0.00016438,2]
[383743885,1757106662492,-636.56,0.00016438,2]
[383743886,1757106662503,-480.0,0.00016438,2]
[383743887,1757106662513,-480.0,0.00016438,2]
[383743888,1757106662523,-480.0,0.00016438,2]
[383743889,1757106662534,-1033.98,0.00016438,2]
[383743890,1757106662543,-1237.66,0.00016438,2]
[383743891,1757106662553,-1000.0,0.0001649,2]
[383743892,1757106662563,-500.0,0.0001649,2]
[383743893,1757106662574,-811.32617268,0.0001649,2]
[383743894,1757106662585,-735.84522646,0.0001649,2]
[383743895,1757106662595,-1000.0,0.0001649,2]
[383743896,1757106662605,-1000.0,0.0001649,2]
[383743897,1757106662614,-1000.0,0.0001649,2]